[Event "Leca Open 2022"]
[Site "Leca da Palmeira"]
[Date "2022.08.03"]
[Round "6.13"]
[White "Prieto Martin, Alfonso"]
[Black "Harisurya Bharadwaj Gundepudi"]
[Result "0-1"]
[ECO "B12"]
[WhiteElo "2264"]
[BlackElo "1924"]
[Annotator "TA"]
[PlyCount "65"]
[EventDate "2022.08.02"]
[EventType "swiss"]
[EventCountry "POR"]
[SourceTitle "playchess.com"]
[Source "ChessBase"]
[SourceQuality "1"]
[TimeControl "5400+30"]

{[%evp 14,65,56,66,221,189,210,171,385,408,394,381,404,397,391,277,272,265,255,254,347,341,330,211,250,257,275,286,279,300,304,288,413,409,400,393,477,469,461,481,486,485,475,446,510,516,497,426,505,512,499,500,546,514]} 1. e4 {[%emt 0:00:13]} c6 {[%emt 0:03:06]} 2. d4 {[%emt 0:00:14]} d5 {[%emt 0:00:04]} 3. f3 {[%emt 0:00:09]} dxe4 {[%emt 0:01:16]} 4. fxe4 {[%emt 0:00:08]} e5 {[%emt 0:00:30]} 5. Nf3 {[%emt 0:00:05][%cal Bg1f3,Bf3g5,Bg5e6][%mdl 32]} exd4 {[%emt 0:02:39]} 6. Bc4 {[%emt 0:00:18]} Be6 {[%emt 0:04:13]} 7. Bxe6 {[%emt 0:01:50]} fxe6 {[%emt 0:00:10]} 8. O-O {[%emt 0:00:22] Hoping for Ng5.} Nd7 $2 {[%emt 0:29:09] [#] B12: Caro-Kann: Advance Variation.} (8... Nf6 $14) 9. Ng5 $1 $18 {[%emt 0:05:04]} (9. Qxd4 $2 Bc5 10. Qxc5 Nxc5 $19) 9... Ngf6 {[%emt 0:14:37]} 10. Nxe6 {[%emt 0:03:41]} Qe7 {[%emt 0:01:01]} (10... Qa5) 11. Nc7+ {[%emt 0:00:34]} Kd8 {[%emt 0:00:05]} 12. Nxa8 {[%emt 0:00:12] [#]} Qxe4 $146 {[%emt 0:00:12]} ({Predecessor:} 12... Qc5 13. Rf5 Ne5 14. b4 Qd6 15. Bf4 Nfd7 16. Nd2 Qe6 17. Nf3 Nxf3+ 18. Qxf3 Bxb4 19. Nc7 Qc4 20. Qb3 Qxb3 21. axb3 {1-0 (21) Petrova,K (2299)-Volodin,V (2222) Olomouc 2010}) 13. Nd2 {[%emt 0:08:11]} ({Not} 13. Rf4 Qe6 14. Rf1 (14. Qxd4 $2 Bc5 $19) 14... Bd6 $18) 13... Qd5 {[%emt 0:01:10]} 14. Qf3 {[%emt 0:01:32]} Kc8 {[%emt 0:02:26]} 15. Qxd5 {[%emt 0:04:24]} Nxd5 {[%emt 0:00:16]} 16. Ne4 {[%emt 0:00:22]} Kb8 {[%emt 0:00:32]} 17. Rf7 {[%emt 0:00:10]} Ne5 {[%emt 0:01:06]} 18. Rf5 {[%emt 0:01:38]} Ng6 {[%emt 0:00:45] [#]} 19. Bd2 $1 {[%emt 0:05:32]} Kxa8 {[%emt 0:00:52]} (19... Rg8 20. Re1) 20. Raf1 {[%emt 0:00:26]} Be7 {[%emt 0:04:46]} 21. Rf7 {[%emt 0:03:14]} Rg8 {[%emt 0:00:10]} 22. Bg5 {[%emt 0:03:19]} Bb4 {[%emt 0:01:38]} (22... Ne3 {keeps fighting.} 23. R1f2 (23. Bxe7 Nxf1 24. Kxf1 Re8 $18) (23. Rxe7 Nxe7 24. Bxe3 dxe3 $11) 23... Ng4) 23. a3 {[%emt 0:01:19]} Ba5 {[%emt 0:00:18]} 24. h4 {[%emt 0:01:43][%cal Bh2h4,Bh4h5][%mdl 32] h5 is the strong threat.} a6 {[%emt 0:02:05]} 25. h5 {[%emt 0:08:03] White is clearly winning.} Ne5 {[%emt 0:08:09]} 26. Rf8+ {[%emt 0:00:39]} Rxf8 {[%emt 0:00:04]} 27. Rxf8+ {[%emt 0:00:04]} Ka7 {[%emt 0:00:03]} 28. Nd6 {[%emt 0:00:28]} Bc7 {[%emt 0:02:21]} 29. Nc8+ {[%emt 0:00:37]} Kb8 {[%emt 0:00:06]} 30. Nb6+ {[%emt 0:00:54]} Ka7 {[%emt 0:00:07]} 31. Nxd5 {[%emt 0:00:14]} cxd5 {[%emt 0:00:08]} 32. Bf4 {[%emt 0:01:36]} Kb6 {[%emt 0:00:58]} 33. Rf5 {[%emt 0:02:18][%mdl 32768] Black did not feel at home in the position after the opening.  Weighted Error Value: White=0.10 (very precise) /Black=0.47. Loss on time!?} 0-1

[Event "Leca Open 2022"]
[Site "Leca da Palmeira"]
[Date "2022.08.03"]
[Round "6.14"]
[White "Goncalves, Samuel Jesus P"]
[Black "Pena Duarte, Fabian Dario"]
[Result "1-0"]
[ECO "A50"]
[WhiteElo "1957"]
[BlackElo "2224"]
[Annotator "TA"]
[PlyCount "99"]
[EventDate "2022.08.02"]
[EventType "swiss"]
[EventCountry "POR"]
[SourceTitle "playchess.com"]
[Source "ChessBase"]
[SourceQuality "1"]
[TimeControl "5400+30"]

{[%evp 11,98,-2,0,-13,53,-7,-8,-21,-14,-19,0,0,-7,-11,0,-89,0,-49,-68,-85,36,59,74,85,89,79,216,201,333,343,343,347,359,298,366,390,391,374,567,573,507,253,263,30,46,41,36,39,47,0,203,162,131,42,417,424,781,753,705,467,939,903,903,384,880,866,986,785,905,894,29970,6354,29992,29993,29993,29993,29993,29994,29994,997,910,900,1116,1086,29990,29991,29991,29992,29999]} 1. d4 {[%emt 0:01:23]} Nf6 {[%emt 0:00:18]} 2. c4 {[%emt 0:00:05]} c6 {[%emt 0:00:04]} 3. Nf3 {[%emt 0:00:15]} d5 {[%emt 0:00:07]} 4. g3 {[%emt 0:05:05]} e6 {[%emt 0:02:06]} 5. Bg2 {[%emt 0:00:23]} dxc4 {[%emt 0:00:05]} 6. O-O {[%emt 0:00:48]} b5 {[%emt 0:01:41]} 7. a4 {[%emt 0:00:16] E04: Open Catalan: 5 Nf3.} a5 {[%emt 0:07:22]} (7... Bb7 $11) 8. b3 {[%emt 0:06:38]} (8. Ne5 $14 Ra6 9. Bf4) 8... cxb3 $11 {[%emt 0:01:32]} 9. Qxb3 {[%emt 0:00:16] The position is equal.} b4 {[%emt 0:01:12]} 10. Ne5 {[%emt 0:00:59] [#]} Nd5 $146 {[%emt 0:07:30]} ({Predecessor:} 10... Bb7 11. Bb2 Nfd7 12. Nd3 Be7 13. Nd2 O-O 14. Rac1 Nb6 15. Rfd1 Ba6 16. Ne4 Bxd3 17. Rxd3 {1-0 (52) Navalgund,N (2351)-Jishitha,D (1933) Mumbai 2017}) 11. e4 {[%emt 0:00:25]} Nb6 {[%emt 0:00:26]} 12. Be3 {[%emt 0:04:18]} Bd6 {[%emt 0:01:20]} 13. Nd2 {[%emt 0:01:16]} (13. Nd3 $11) 13... O-O {[%emt 0:04:57]} (13... Bxe5 $17 14. dxe5 N8d7) 14. f4 {[%emt 0:03:36]} (14. Ndf3 $11) 14... Bxe5 $15 {[%emt 0:08:35]} 15. dxe5 {[%emt 0:00:07]} Na6 {[%emt 0:02:56]} (15... N8d7 $1 $17 {Hoping for ...c5.} 16. Qc2 c5) 16. f5 $14 {[%emt 0:04:28]} exf5 {[%emt 0:11:15]} 17. exf5 {[%emt 0:00:07]} Nd5 {[%emt 0:00:07]} 18. Ne4 {[%emt 0:05:52] White is more active.} Re8 {[%emt 0:08:35]} (18... Nxe3 $16 {might work better.} 19. Qxe3 Qc7) 19. Bd4 $18 {[%emt 0:00:38]} Nc3 {[%emt 0:16:03]} (19... Nac7 {was worth a try.} 20. Rf2 Rf8) 20. Bxc3 {[%emt 0:01:18]} (20. Nd6 Rf8 $18) 20... bxc3 {[%emt 0:00:21]} 21. Rad1 {[%emt 0:00:56] Inhibits Qd4+.} (21. Qxc3 Qb6+ 22. Rf2 (22. Kh1 Qb4 $14) 22... Qb4 $16) (21. Nxc3 Qd4+ 22. Kh1 Rb8 $17) 21... Qe7 {[%emt 0:04:19]} 22. Nd6 {[%emt 0:03:01]} (22. Nxc3 Qc5+ 23. Kh1 Rb8 $17) 22... Nb4 {[%emt 0:04:31]} 23. Qxc3 {[%emt 0:05:16]} (23. Nxe8 c2 24. Rde1 Qxe8 $16) 23... Ba6 {[%emt 0:02:15]} 24. Rfe1 {[%emt 0:01:44]} (24. Nxe8 Bxf1 25. Nf6+ (25. Bxf1 Rxe8 26. f6 Qa7+ 27. Kg2 h6 $16) 25... gxf6 $18) 24... Red8 {[%emt 0:02:23]} (24... Qa7+ $142 25. Kh1 Re7) 25. f6 {[%emt 0:09:19]} Qe6 {[%emt 0:05:04]} 26. Qd2 {[%emt 0:01:28]} (26. fxg7 $142 Kxg7 27. Be4) 26... gxf6 {[%emt 0:01:29]} 27. exf6 $2 {[%emt 0:08:18]} (27. Be4 $18) 27... Qxf6 $11 {[%emt 0:00:20]} 28. Ne4 $1 {[%emt 0:01:14]} Qe5 {[%emt 0:02:49]} ({Weaker is} 28... Qe7 29. Qc3 Qf8 30. Nf6+ Kh8 31. Rxd8 (31. Bxc6 Rxd1 32. Rxd1 Rc8 $11) 31... Rxd8 32. Re8 (32. Bxc6 Nxc6 33. Qc2 Bd3 $11) 32... Rxe8 33. Nxe8+ Kg8 34. Nf6+ (34. Bxc6 Nd5 $14) 34... Kh8 35. Ne8+ (35. Bxc6 Nxc6 36. Nh5+ Kg8 $11) 35... f6 36. Nxf6 $16 (36. Qxf6+ Qxf6 37. Nxf6 Bd3 $11) (36. Bxc6 Nxc6 37. Qxc6 Bb7 $11)) 29. Qh6 $36 {[%emt 0:00:52][%mdl 3072] White has compensation. White fights for an advantage.} (29. Qxd8+ $2 Rxd8 30. Rxd8+ Kg7 $17) 29... Qg7 {[%emt 0:01:37]} 30. Qh4 {[%emt 0:04:57]} (30. Rxd8+ $14 Rxd8 31. Nf6+ Kh8 32. Qh4) 30... Nd3 $2 {[%emt 0:00:54]} (30... Rxd1 $1 $11 {and Black is okay.} 31. Rxd1 Nd5) 31. Nf6+ $18 {[%emt 0:00:18][%mdl 64] Discovered Attack} Kh8 {[%emt 0:00:10] [#]} 32. Re4 {[%emt 0:01:24]} (32. Rf1 $1 $16 {[%cal Rf1f5]}) 32... Rd6 $2 {[%emt 0:00:23][%mdl 8192]} (32... Nc5 $14 33. Red4 Ne6) 33. Ne8 {[%emt 0:00:41]} Qh6 {[%emt 0:03:07]} (33... Rh6 $142 34. Nxg7 Rxh4 35. Rxh4 Kxg7 36. Bxc6 Ra7) 34. Nxd6 {[%emt 0:02:21]} Qxd6 {[%emt 0:00:01]} 35. Rd4 {[%emt 0:00:51]} Qc5 {[%emt 0:00:03]} (35... Qe5 $142 36. R4xd3 Bxd3 37. Rxd3 Qc5+ 38. Qd4+ Qxd4+ 39. Rxd4 c5 40. Bxa8 cxd4) 36. Qf6+ {[%emt 0:01:13]} Kg8 {[%emt 0:00:01]} 37. Qd6 {[%emt 0:01:46]} (37. Be4 $142 h5 38. Bxd3 Bxd3 39. R1xd3) 37... Qb6 $2 {[%emt 0:02:21]} (37... Qxd6 38. Rxd6 Nb4 39. Bxc6 Nxc6 40. Rxc6 Bb7) 38. Bf1 {[%emt 0:00:51]} Nb2 {[%emt 0:00:32] [#]} 39. Kg2 $1 {[%emt 0:00:48] White wants to mate with Rg4+.} h5 {[%emt 0:00:09] Inhibits Rg4+.} (39... Bc8 40. Qf6) 40. Re1 {[%emt 0:04:48] Intending Re5 and mate.} Bb7 {[%emt 0:00:15]} 41. Rd5 {[%emt 0:00:49] Rg5+ would kill now.} Qb4 {[%emt 0:01:06]} 42. Rg5+ {[%emt 0:00:16]} Kh7 {[%emt 0:00:02]} 43. Rxh5+ {[%emt 0:00:50]} Kg8 {[%emt 0:00:02]} 44. Rg5+ {[%emt 0:00:32]} Kh7 {[%emt 0:00:09]} 45. Qxb4 {[%emt 0:04:15]} (45. Bd3+ $142 Nxd3 46. Qxd3+ Kh6 {[#]} 47. Re6+ $3 {[%mdl 512]} Kxg5 48. Qe3+ Kh5 49. Qe5+ Kg4 50. h3#) 45... axb4 {[%emt 0:00:01]} 46. Re7 {[%emt 0:00:13][%csl LRb7,LRf7]} Rb8 {[%emt 0:00:14]} 47. Rxf7+ {[%emt 0:00:19]} Kh8 {[%emt 0:01:31]} 48. Rf4 {[%emt 0:00:25][%cal Rf4h4] White mates.} c5+ {[%emt 0:00:26]} 49. Kg1 {[%emt 0:00:06][%cal Rf4h4]} Bc6 {[%emt 0:00:52]} 50. Rh4# {[%emt 0:00:05] Weighted Error Value: White=0.46/Black=1.11} 1-0

[Event "Leca Open 2022"]
[Site "Leca da Palmeira"]
[Date "2022.08.03"]
[Round "6.15"]
[White "Fernandes, Francisco Justo Sant"]
[Black "Mahitosh Dey"]
[Result "0-1"]
[ECO "C70"]
[WhiteElo "1788"]
[BlackElo "2212"]
[Annotator "TA"]
[PlyCount "50"]
[EventDate "2022.08.02"]
[EventType "swiss"]
[EventCountry "POR"]
[SourceTitle "playchess.com"]
[Source "ChessBase"]
[SourceQuality "1"]
[TimeControl "5400+30"]

{[%evp 22,50,-4,-18,59,62,71,69,74,0,0,0,0,-39,-39,-53,-45,-75,-65,-47,0,-122,-83,-668,-546,-500,-329,-856,-809,-908,-541]} 1. e4 {[%emt 0:00:04]} e5 {[%emt 0:00:38]} 2. Nf3 {[%emt 0:00:10]} Nc6 {[%emt 0:00:04]} 3. Bb5 {[%emt 0:02:31]} a6 {[%emt 0:00:17]} 4. Ba4 {[%emt 0:00:05]} Bc5 {[%emt 0:00:10]} 5. O-O {[%emt 0:06:00]} b5 {[%emt 0:00:40]} 6. Bb3 {[%emt 0:00:05]} Nf6 {[%emt 0:00:08]} 7. Nxe5 {[%emt 0:07:47]} Nxe5 {[%emt 0:00:07]} 8. d4 {[%emt 0:00:04]} Bxd4 {[%emt 0:00:43]} 9. Qxd4 {[%emt 0:00:09]} d6 {[%emt 0:00:50]} 10. Qd1 {[%emt 0:14:41]} c5 {[%emt 0:00:17]} 11. c3 {[%emt 0:02:42]} O-O {[%emt 0:00:58]} 12. Bg5 {[%emt 0:03:44] [#]} Qb6 $146 {[%emt 0:01:48] C78: Ruy Lopez: Archangelsk and Möller Defences.} (12... h6 $11 13. Bxf6 Qxf6) ({Predecessor:} 12... h6 13. Bxf6 Qxf6 14. Bd5 Rb8 15. f4 Ng4 16. Qe2 Qh4 17. h3 Nf6 18. Nd2 Nxd5 19. exd5 Bb7 20. Qd3 {0-1 (42) Goltsev,D (2282)-Pranav,V (2486) Chess.com INT 2021}) 13. Bxf6 $14 {[%emt 0:09:16]} gxf6 {[%emt 0:00:05]} 14. Bd5 {[%emt 0:00:06]} Rb8 {[%emt 0:01:01] White is slightly better.} 15. f4 {[%emt 0:01:20]} (15. Na3 $16) 15... c4+ $11 {[%emt 0:02:05]} 16. Kh1 {[%emt 0:00:25]} Nd3 {[%emt 0:00:58]} 17. Qe2 {[%emt 0:07:19] Prevents Nf2+.} Be6 {[%emt 0:03:24]} 18. Nd2 {[%emt 0:00:41][%cal Od2b3]} Rbe8 {[%emt 0:00:55] [#] ...Bxd5 is the strong threat.} (18... Nxb2 19. Rab1 Na4 20. Qh5 $11) 19. Qf3 {[%emt 0:03:28]} Bxd5 {[%emt 0:00:21] 0x0.001681303930dp-1022s more active pieces.} ({Reject} 19... Nxb2 20. Qg3+ Kh8 21. Qh4 $11) 20. exd5 {[%emt 0:01:14]} f5 {[%emt 0:00:48]} ({Don't take} 20... Nxb2 21. Ne4 Rxe4 22. Qxe4 $16) (20... Qe3 $15 {feels stronger.} 21. Qg4+ Kh8) 21. Qg3+ {[%emt 0:03:57]} (21. b3 $11 {keeps the balance.}) 21... Kh8 $17 {[%emt 0:00:08] White must now prevent ...Rg8.} 22. Rf3 $2 {[%emt 0:09:11][%mdl 8192] White does not recover from this.} (22. Qh4 $17) 22... Re2 {[%emt 0:02:05]} 23. Qh4 {[%emt 0:05:39] [#] White threatens Qf6+ and mate.} f6 {[%emt 0:00:04]} (23... Rxd2 $2 {leads to mate.} 24. Qf6+ Kg8 25. Rg3#) 24. Rxd3 {[%emt 0:05:30]} (24. Nb3 Nf2+ 25. Kg1 Ne4+ 26. Nd4 Rxb2 27. Qh6) 24... cxd3 $19 {[%emt 0:00:09]} 25. Nf3 {[%emt 0:03:44]} Qf2 {[%emt 0:00:15] Weighted Error Value: White=1.09/Black=0.43} 0-1

[Event "Leca Open 2022"]
[Site "Leca da Palmeira"]
[Date "2022.08.05"]
[Round "9.1"]
[White "Motylev, Alexander"]
[Black "Rodriguez Lopez, Rafael"]
[Result "1-0"]
[ECO "B67"]
[WhiteElo "2632"]
[BlackElo "2172"]
[Annotator "TA"]
[PlyCount "87"]
[EventDate "2022.08.02"]
[EventType "swiss"]
[EventCountry "POR"]
[SourceTitle "playchess.com"]
[Source "ChessBase"]
[SourceQuality "1"]
[TimeControl "5400+30"]

{[%evp 18,87,37,26,18,16,39,35,41,50,36,53,58,0,0,-1,1,0,0,0,0,0,0,-1,0,-26,189,213,247,240,338,331,329,336,773,766,735,747,662,357,318,330,772,343,771,355,387,381,360,355,359,297,548,304,641,406,390,398,461,475,828,838,1002,979,4831,4814,29988,29989,29994,29990,29990,29991]} 1. e4 {[%emt 0:00:04]} c5 {[%emt 0:00:08]} 2. Nf3 {[%emt 0:00:06]} d6 {[%emt 0:00:05]} 3. d4 {[%emt 0:00:10]} cxd4 {[%emt 0:00:04]} 4. Nxd4 {[%emt 0:00:05]} Nf6 {[%emt 0:00:04]} 5. Nc3 {[%emt 0:00:06]} Nc6 {[%emt 0:00:05]} 6. Bg5 {[%emt 0:00:31]} e6 {[%emt 0:00:06]} 7. Qd2 {[%emt 0:00:47]} a6 {[%emt 0:00:07]} 8. O-O-O {[%emt 0:02:04]} Bd7 {[%emt 0:00:05]} 9. f3 {[%emt 0:00:38]} Be7 {[%emt 0:00:28]} 10. Kb1 {[%emt 0:02:11]} Qc7 {[%emt 0:00:10] 10...Nxd4 is more fashionable. B67: Sicilian: Richter-Rauzer: 7...a6 8 0-0-0 Bd7, lines without 9 f4 Be7.} 11. g4 {[%emt 0:01:20]} Nxd4 {[%emt 0:00:23]} 12. Qxd4 {[%emt 0:00:11]} b5 {[%emt 0:00:12][%cal Bb7b5,Bb5b4][%mdl 32] White is slightly better.} 13. Be3 {[%emt 0:01:56]} O-O {[%emt 0:04:17]} 14. g5 {[%emt 0:01:49]} Nh5 {[%emt 0:00:31] [#]} 15. f4 $146 {[%emt 0:20:43]} (15. Qd2 $14) ({Predecessor:} 15. Qd2 Rfd8 16. Bh3 g6 17. Bg4 Ng7 18. h4 b4 19. Ne2 d5 20. e5 d4 21. Nxd4 Qxe5 {1-0 (28) Smirin,I (2614)-Rechlis,G (2513) Jerusalem 2021}) 15... Rfc8 $11 {[%emt 0:10:12][%cal Ob5b4] Threatens to win with ...b4!} 16. Qd2 {[%emt 0:08:48]} Bc6 {[%emt 0:05:37] aiming for ...b4.} (16... b4 $5 17. Ne2 e5 $11) 17. Be2 {[%emt 0:05:05]} b4 {[%emt 0:01:07]} 18. Nd5 {[%emt 0:00:21]} exd5 {[%emt 0:00:07]} 19. Bxh5 {[%emt 0:00:42]} dxe4 {[%emt 0:00:33]} 20. f5 {[%emt 0:00:59][%cal Bf4f5,Bf5f6][%mdl 32]} Bf8 {[%emt 0:04:11]} 21. g6 {[%emt 0:02:46][%cal Bg5g6,Bg6h7][%mdl 32]} Be8 {[%emt 0:16:12] This move loses the game for Black.} (21... f6 $1 $11 {and Black is okay.}) 22. gxh7+ $1 $18 {[%emt 0:03:33]} Kh8 {[%emt 0:04:30]} 23. f6 {[%emt 0:01:18]} Ba4 {[%emt 0:04:05]} (23... g6 {keeps fighting.} 24. Bg4 Bd7 25. Bxd7 Qxd7) 24. b3 {[%emt 0:03:27] The board is on fire.} Be8 {[%emt 0:03:54]} 25. Bg4 {[%emt 0:24:10]} Bd7 {[%emt 0:02:09]} (25... Qc3 26. Bxc8 Rxc8 27. Qxc3 Rxc3) 26. Bxd7 {[%emt 0:01:03]} Qxd7 {[%emt 0:00:06]} 27. fxg7+ {[%emt 0:00:53]} Bxg7 {[%emt 0:00:06]} 28. Bd4 {[%emt 0:00:15]} f6 {[%emt 0:02:48]} 29. Rhg1 {[%emt 0:00:43] Black must now prevent Rg3.} Rc7 $2 {[%emt 0:06:40] [#]} (29... Re8 30. Rg3 Re7) 30. Qf4 {[%emt 0:01:37]} (30. Rxg7 $142 $1 {[%mdl 512]} Qxg7 31. Rg1) 30... Rf8 $2 {[%emt 0:03:07] [#]} (30... Qc6 31. Rd2 Rf8) 31. Qxe4 {[%emt 0:00:55]} (31. Rxg7 $142 $1 {[%mdl 512]} Qxg7 32. Rg1) 31... Qc6 {[%emt 0:00:53]} 32. Qg6 {[%emt 0:01:36] Rde1 is the strong threat.} Qe8 {[%emt 0:01:17]} 33. Qf5 {[%emt 0:02:02]} Qc8 {[%emt 0:02:53]} 34. Qd3 {[%emt 0:00:30]} a5 $2 {[%emt 0:03:06]} (34... Qe8 35. Rd2 Re7) 35. Rdf1 {[%emt 0:01:42] And now h4 would win.} Rcf7 $2 {[%emt 0:04:44]} (35... Qe6 36. Rf3 d5) 36. Rf5 {[%emt 0:02:09]} Qe6 {[%emt 0:00:46]} 37. Rxa5 {[%emt 0:00:41]} d5 {[%emt 0:01:30]} 38. Rb5 {[%emt 0:03:06]} Qd6 {[%emt 0:02:03]} (38... Qa6 $142 39. Bc5 Rc8) 39. Bc5 {[%emt 0:00:42]} Qxh2 {[%emt 0:00:06]} 40. Qxd5 {[%emt 0:01:12]} f5 {[%emt 0:01:22]} 41. Rxg7 {[%emt 0:02:45]} Kxg7 {[%emt 0:01:06]} 42. Bxf8+ {[%emt 0:00:34] White mates.} Kxf8 {[%emt 0:00:52]} 43. Qd8+ {[%emt 0:00:42]} Kg7 {[%emt 0:00:06]} 44. Qg8+ {[%emt 0:00:06] Weighted Error Value: White=0.63/Black=0.83} 1-0

[Event "Leca Open 2022"]
[Site "Leca da Palmeira"]
[Date "2022.08.05"]
[Round "9.2"]
[White "Stella, Andrea"]
[Black "Nigmatov, Ortik"]
[Result "0-1"]
[ECO "E68"]
[WhiteElo "2443"]
[BlackElo "2437"]
[Annotator "TA"]
[PlyCount "76"]
[EventDate "2022.08.02"]
[EventType "swiss"]
[EventCountry "POR"]
[SourceTitle "playchess.com"]
[Source "ChessBase"]
[SourceQuality "1"]
[TimeControl "5400+30"]

{[%evp 22,76,25,10,44,24,83,85,85,78,81,84,83,31,39,49,104,75,76,89,154,80,63,73,75,-89,-92,-88,-90,-97,-107,-90,-100,-102,-93,-122,-116,-302,-279,-281,-282,-526,-614,-597,-603,-601,-590,-579,-570,-546,-552,-4802,-2006,-1151,-1146,-29977,-1304]} 1. d4 {[%emt 0:08:30] Stohl,I} Nf6 {[%emt 0:00:10]} 2. c4 {[%emt 0:00:09]} g6 {[%emt 0:00:08]} 3. g3 {[%emt 0:00:06]} Bg7 {[%emt 0:00:06]} 4. Bg2 {[%emt 0:00:05]} O-O {[%emt 0:00:08]} 5. Nc3 {[%emt 0:00:05]} d6 {[%emt 0:00:10]} 6. Nf3 {[%emt 0:00:13]} Nbd7 {[%emt 0:00:09]} 7. O-O {[%emt 0:00:11]} e5 {[%emt 0:00:04]} 8. e4 {[%emt 0:00:07]} exd4 {[%emt 0:00:05]} 9. Nxd4 {[%emt 0:00:08]} Re8 {[%emt 0:00:06]} 10. h3 {[%emt 0:00:40]} Nc5 {[%emt 0:00:09]} 11. Re1 {[%emt 0:00:29]} h6 {[%emt 0:00:08]} 12. Nb3 {[%emt 0:09:14] is the legacy move (12.Rb1).} Nxb3 {[%emt 0:14:28] E68: King's Indian: Fianchetto: 6...Nbd7 7 0-0 e5 8 e4.} 13. axb3 {[%emt 0:01:12] [#]} Nh7 $146 {[%emt 0:04:04]} (13... Bd7 $11 {keeps the balance.}) ({Predecessor:} 13... a6 14. Be3 Bd7 15. Qd2 h5 16. f4 Bc6 17. Bf2 a5 18. Rad1 Qc8 19. Bd4 Nh7 20. Bxg7 Kxg7 {½-½ (70) Moskalenko,V (2529)-Illescas Cordoba,M (2607) Barcelona 2005 CBM 110 [Stohl,I]}) 14. Be3 $16 {[%emt 0:05:32]} a6 {[%emt 0:05:07] White is better.} 15. Qd2 {[%emt 0:05:38]} h5 {[%emt 0:00:06]} (15... Ng5 16. h4 Nh7 17. Bxh6) 16. f4 {[%emt 0:06:38]} Be6 {[%emt 0:02:17]} 17. Nd5 {[%emt 0:09:21]} (17. Kh2 $16) 17... Qd7 {[%emt 0:15:30]} 18. Kh2 {[%emt 0:00:29]} b5 {[%emt 0:05:01]} ({Black should play} 18... Bxd5 $14 19. cxd5 (19. exd5 Re7 $11) 19... f5) 19. Bd4 {[%emt 0:08:02]} Bxd4 {[%emt 0:14:01]} 20. Qxd4 {[%emt 0:00:00]} c6 {[%emt 0:07:04]} (20... bxc4 $142 21. bxc4 c5) 21. Nb6 {[%emt 0:17:47]} (21. Ne3 $142 $1) 21... Qa7 {[%emt 0:00:05]} 22. cxb5 $1 {[%emt 0:00:37]} cxb5 {[%emt 0:00:34] aiming for ...Rab8.} 23. f5 $2 {[%emt 0:03:17] [#]} (23. Rec1 $16 {and life is bright.}) 23... Rab8 $1 $17 {[%emt 0:00:58][%cal Ba8b8,Bb8b6,Bb6c6,Bc6c2][%mdl 32]} 24. fxe6 {[%emt 0:00:11]} Rxe6 {[%emt 0:00:18]} 25. Rec1 {[%emt 0:04:57] Hoping for Rc6.} Qxb6 {[%emt 0:00:26]} 26. Rc8+ {[%emt 0:00:07]} Nf8 {[%emt 0:00:05]} 27. Qxb6 {[%emt 0:00:13]} Rxb6 {[%emt 0:00:01]} 28. Ra8 {[%emt 0:00:22] [#]} Rc6 $1 {[%emt 0:00:38]} 29. R1xa6 $2 {[%emt 0:01:00] This move loses the game for White.} (29. Kg1 $17 {was necessary.}) 29... Rc2 $1 $19 {[%emt 0:00:42][%csl LRb2,LRe4]} 30. Kg1 {[%emt 0:02:25]} Rf6 {[%emt 0:02:31]} ({Wrong is} 30... Rxb2 $2 31. Rd8 Kg7 32. Raxd6 $19) 31. Rd8 $2 {[%emt 0:15:02]} (31. Ra1) 31... Rc1+ {[%emt 0:00:49]} 32. Kh2 {[%emt 0:00:04]} Rf2 {[%emt 0:00:31]} 33. Raa8 {[%emt 0:00:59] [#]} Rcc2 $1 {[%emt 0:00:41]} 34. Rxf8+ {[%emt 0:00:05]} Kg7 {[%emt 0:00:03]} 35. Rg8+ {[%emt 0:01:17]} Kf6 {[%emt 0:00:20]} 36. e5+ {[%emt 0:00:50]} dxe5 {[%emt 0:01:14]} 37. Ra6+ {[%emt 0:00:47]} Kg5 {[%emt 0:00:21]} 38. h4+ {[%emt 0:00:40]} Kg4 {[%emt 0:02:31] Weighted Error Value: White=1.03/Black=0.09 (flawless)} (38... Kf5 $142 39. Kh1 Rxg2 40. Rd8 Kg4 41. Rd3 Rxg3 42. Rad6 Rxd3 43. Rxd3 e4 44. Re3 f5 45. Kg1 Kxh4 46. Kf1 Rxb2 47. Ke1 Kg4 48. Kf1 g5 49. Ke1 h4 50. Kd1 h3 51. Re1 h2 52. Kc1 Rg2 53. Rd1 Rg1 54. Kd2 Rxd1+ 55. Kxd1 h1=Q+ 56. Kc2 Qa1 57. b4 Qa2+ 58. Kd1 e3 59. Ke1 Qf2+ 60. Kd1 Qd2#) 0-1